bitfinex/quotes_ETHUSD_20240730
["timestamp","ask_amount","ask_price","bid_price","bid_amount"]
[1722331743196,6.9582,3348.9,3348.3,2.98658]
[1722331743516,3.97208,3348.9,3348.3,2.98658]
[1722331744716,2.98621,3348.8,3348.3,2.98658]
[1722331744875,2.98621,3348.8,3348.4,0.10311901]
[1722331746469,2.98623,3348.7,3348.4,0.10311901]
[1722331746673,2.98623,3348.7,3348.2,5.32675]
[1722331747074,3.97211,3348.9,3348.3,2.98656]
[1722331747275,2.98615,3348.8,3348.3,3.08967901]
[1722331749236,2.98633,3348.6,3348.3,0.10311901]
[1722331749381,2.9865,3348.4,3348.3,0.10311901]
[1722331749711,2.9869,3348.0,3347.4,2.2526]
[1722331749877,2.98698,3347.9,3347.4,2.2526]
[1722331750315,3.97298,3347.9,3347.4,2.2526]
[1722331750480,2.98717,3347.7,3347.4,2.2526]
[1722331750982,2.98739,3347.4,3347.0,2.3586]
[1722331751182,0.986,3347.5,3347.0,2.3586]
[1722331751480,2.98728,3347.6,3347.0,5.34627]
[1722331752623,2.9871,3347.8,3347.2,2.98751]
[1722331753162,3.9728,3348.1,3347.2,2.98751]
[1722331753314,2.98703,3347.8,3347.2,2.9875]
[1722331753508,2.98703,3347.8,3347.3,2.98746]
[1722331754442,2.98686,3348.0,3347.3,2.98741]
[1722331754606,2.98686,3348.0,3347.4,2.98737]
[1722331755311,2.98705,3347.8,3347.3,2.98741]
[1722331755625,3.97282,3348.1,3347.5,2.98729]
[1722331756833,2.98699,3347.9,3347.3,2.98741]
[1722331757020,0.986,3348.1,3347.3,2.98741]
[1722331757251,2.98704,3347.8,3347.3,2.98741]
[1722331758458,2.9869,3348.0,3347.4,2.98739]
[1722331760029,2.9869,3348.0,3347.5,0.10075366]
[1722331760991,2.98696,3347.9,3347.5,0.10075366]
[1722331761284,2.98696,3347.9,3347.3,2.98741]
[1722331761442,2.98696,3347.9,3347.6,0.10075366]
[1722331761637,2.98696,3347.9,3347.3,2.98741]
[1722331761981,2.98696,3347.9,3347.4,0.10075366]
[1722331762681,5.97398,3347.9,3347.4,0.10075366]
[1722331762890,2.98696,3347.9,3347.4,0.10075366]
[1722331764535,2.98696,3347.9,3347.4,3.08809366]
[1722331768825,3.97296,3347.9,3347.4,3.08809366]
[1722331773915,3.97296,3347.9,3347.4,0.10075366]
[1722331774532,2.98708,3347.8,3347.4,0.10075366]
[1722331775056,2.98715,3347.7,3347.4,0.10075366]
[1722331775259,0.986,3347.5,3347.4,0.10075366]
[1722331775430,0.986,3347.5,3347.0,2.3586]
[1722331775631,3.97338,3347.5,3347.4,0.10071846]
[1722331775858,2.98743,3347.4,3347.0,2.3586]
[1722331780255,2.9873,3347.5,3347.0,5.34633]
[1722331781242,0.986,3347.6,3347.1,2.98761]
[1722331781438,0.986,3347.6,3347.2,2.98756]
[1722331781683,3.97321,3347.6,3347.0,5.34627]
[1722331781845,3.97321,3347.6,3347.1,2.98765]
[1722331782568,0.986,3347.6,3347.2,2.98756]
[1722331784698,2.98717,3347.7,3347.2,2.98756]
[1722331785394,3.97307,3347.8,3347.2,2.98751]
[1722331785705,3.97307,3347.8,3347.2,5.97501]
[1722331786042,3.97307,3347.8,3347.2,2.98749]
[1722331788038,0.986,3347.8,3347.3,2.98747]
[1722331788241,3.97305,3347.8,3347.3,2.98747]
[1722331789133,3.97305,3347.8,3347.3,5.97489]
[1722331789638,3.97305,3347.8,3347.1,0.2995]
[1722331789639,0.986,3347.8,3347.4,2.98739]
[1722331790002,0.986,3347.8,3347.5,0.10075366]
[1722331790637,3.97303,3347.8,3347.5,0.10075366]
[1722331791165,2.98714,3347.7,3347.6,0.10075366]
[1722331791481,2.98714,3347.7,3347.2,2.98751]
[1722331791776,0.986,3347.6,3347.2,2.98751]
[1722331791978,0.986,3347.6,3347.3,0.10075366]
[1722331792137,0.986,3347.6,3347.2,2.98756]
[1722331792337,0.986,3347.6,3347.4,0.10075366]
[1722331792647,0.986,3347.6,3347.2,2.98756]
[1722331792863,0.986,3347.6,3347.5,0.10075366]
[1722331793063,0.986,3347.6,3347.2,2.98756]
[1722331793386,0.986,3347.6,3347.1,2.98761]
[1722331793533,0.986,3347.6,3347.3,0.10075366]
[1722331793740,0.986,3347.6,3347.1,2.9876]
[1722331794066,3.97321,3347.6,3347.4,0.10075366]
[1722331794268,3.97321,3347.6,3347.1,3.2871]
[1722331794438,0.986,3347.6,3347.5,0.10075366]
[1722331794640,0.986,3347.6,3347.2,2.98757]
[1722331794885,0.986,3347.6,3347.5,0.10075366]
[1722331795088,0.986,3347.6,3347.2,2.98757]
[1722331795237,0.986,3347.6,3347.5,0.10075366]
[1722331795441,0.986,3347.6,3347.2,2.98757]
[1722331795771,3.97321,3347.6,3347.1,2.98764]
[1722331795952,3.97328,3347.6,3347.3,0.10078446]
[1722331796146,3.97328,3347.6,3347.0,5.64576]
[1722331796395,0.986,3347.6,3347.4,0.10078446]
[1722331796592,0.986,3347.6,3347.1,2.98761]
[1722331796738,0.986,3347.6,3347.5,0.10078446]
[1722331796938,0.986,3347.6,3347.1,2.98761]
[1722331797153,0.986,3347.6,3347.5,0.10078446]
[1722331797386,0.986,3347.6,3347.1,3.28711]
[1722331797540,0.986,3347.6,3347.5,0.10078446]
[1722331797741,0.986,3347.6,3347.1,3.28711]
[1722331797969,0.986,3347.6,3347.5,0.10078446]
[1722331798157,0.986,3347.6,3347.1,3.28711]
[1722331798378,0.986,3347.6,3347.5,0.10078446]
[1722331798679,0.986,3347.6,3347.1,3.28711]
[1722331798887,0.986,3347.6,3347.5,0.10078446]
[1722331799095,0.986,3347.6,3347.1,3.28711]
[1722331799278,0.986,3347.6,3347.5,0.10078446]
[1722331799451,0.986,3347.6,3347.1,3.28711]
[1722331799650,0.986,3347.6,3347.5,0.10078446]
[1722331799884,0.986,3347.6,3347.1,3.28711]
[1722331800196,2.98712,3347.7,3347.5,0.10078446]
[1722331800343,0.986,3347.8,3347.5,0.10078446]
[1722331800783,2.98713,3347.7,3347.5,0.10078446]
[1722331802548,3.97304,3347.8,3347.5,0.10078446]
[1722331803982,0.986,3347.8,3347.5,0.10078446]
[1722331804458,0.986,3347.8,3347.5,3.08807446]
[1722331805803,0.986,3347.8,3347.5,0.10078446]
[1722331806096,0.986,3347.8,3347.5,3.08808446]
[1722331806455,2.9869,3348.0,3347.5,3.08808446]
[1722331806456,0.986,3347.9,3347.5,3.08808446]
[1722331806668,0.986,3347.9,3347.5,3.08802446]
[1722331807888,3.97296,3347.9,3347.5,0.10078446]
[1722331808082,3.97296,3347.9,3347.5,3.08808446]
[1722331808284,0.986,3347.9,3347.5,3.08808446]
[1722331809616,0.986,3347.9,3347.5,6.07533446]
[1722331809912,0.986,3348.5,3347.9,2.98694]
[1722331810208,3.97243,3348.5,3348.0,2.98685]
[1722331810657,5.4426,3348.8,3348.0,3.04658334]
[1722331810858,7.3,3349.2,3348.2,0.2995]
[1722331810859,3.97187,3349.2,3348.2,0.2995]
[1722331811105,5.44203,3349.4,3348.3,2.98652]
[1722331811106,0.986,3348.8,3348.3,2.98652]
[1722331811300,0.986,3348.8,3348.4,2.98649]
[1722331812808,0.986,3348.8,3348.5,2.98641]
[1722331813462,2.98587,3349.1,3348.5,2.98641]
[1722331813663,0.986,3348.9,3348.5,2.98641]
[1722331815201,3.97207,3348.9,3348.3,2.98651]
[1722331815801,0.986,3348.9,3348.4,2.98648]
[1722331816910,2.98615,3348.8,3348.1,5.71373]
[1722331817241,2.98615,3348.8,3348.3,2.98658]
[1722331817787,2.98615,3348.8,3348.4,0.10035338]
[1722331818342,0.986,3348.9,3348.4,0.10035338]
[1722331818537,0.986,3348.9,3348.4,3.08680338]
[1722331818891,2.98604,3349.0,3348.4,3.08680338]
[1722331819087,2.98604,3349.0,3348.5,2.98634]
[1722331819339,2.98604,3349.0,3348.6,0.09984308]
[1722331819704,0.986,3349.1,3348.6,2.38844308]
[1722331819887,3.97188,3349.1,3348.6,5.37475308]
[1722331820230,0.986,3349.1,3348.6,5.37475308]
[1722331821237,3.97189,3349.1,3348.6,5.37475308]
[1722331821534,2.98597,3349.0,3348.6,2.38844308]
[1722331821744,0.986,3348.9,3348.6,2.38844308]
[1722331824143,0.986,3348.9,3348.6,0.09984308]
[1722331824983,0.986,3348.9,3348.7,0.09984308]
[1722331825198,0.986,3348.9,3348.4,2.98643]
[1722331825338,0.986,3348.9,3348.8,0.09984308]
[1722331825534,3.97206,3348.9,3348.4,2.98643]
[1722331825773,0.986,3348.9,3348.8,0.09984308]
[1722331825951,0.986,3348.9,3348.4,2.98643]
[1722331826148,3.97205,3348.9,3348.8,0.09984308]
[1722331826366,3.97205,3348.9,3348.4,2.98649]
[1722331826582,3.97205,3348.9,3348.8,0.09984308]
[1722331826770,3.97205,3348.9,3348.4,2.98649]
[1722331826964,3.97205,3348.9,3348.8,0.09984308]
[1722331827270,3.97205,3348.9,3348.4,5.97291]
[1722331827580,3.97205,3348.9,3348.5,0.09984308]
[1722331827782,3.97205,3348.9,3348.3,2.4511]
[1722331827983,2.98622,3348.8,3348.6,0.09984308]
[1722331828205,2.98622,3348.8,3348.3,5.43767]
[1722331828354,2.98622,3348.8,3348.7,0.09984308]
[1722331828555,2.98622,3348.8,3348.3,5.43767]
[1722331828799,5.27159,3348.8,3348.7,0.09984308]
[1722331828999,2.98669,3348.2,3347.4,2.2871]
[1722331829300,0.986,3348.1,3347.7,2.98711]
[1722331830299,0.986,3348.1,3347.1,5.2747]
[1722331830300,2.273,3347.8,3347.1,5.2747]
[1722331830625,0.986,3347.6,3347.1,5.2747]
[1722331830828,3.97322,3347.6,3346.9,5.97556]
[1722331831124,3.97322,3347.6,3347.0,2.98774]
[1722331831923,2.98732,3347.5,3346.8,5.57445]
[1722331832292,2.98732,3347.5,3346.9,2.98783]
[1722331834306,2.98749,3347.3,3346.7,2.988]
[1722331834503,0.986,3347.2,3346.5,2.5866]
[1722331834687,0.986,3347.2,3346.6,3.0]
[1722331834888,0.986,3347.2,3346.3,0.986]
[1722331834889,2.98786,3346.9,3346.3,2.98836]
[1722331835117,2.98786,3346.9,3346.2,2.98842]
[1722331835317,2.98786,3346.9,3346.4,2.98827]
[1722331835701,0.986,3347.1,3346.4,2.98827]
[1722331835925,2.98775,3347.0,3346.4,2.98827]
[1722331836743,2.98793,3346.8,3346.2,3.28789]
[1722331836893,2.98812,3346.6,3346.0,2.98861]
[1722331837095,2.98812,3346.6,3346.1,3.0]
[1722331838500,2.98812,3346.6,3346.0,2.98861]
[1722331839116,2.98812,3346.6,3346.0,6.27667]
[1722331839518,5.97593,3346.8,3346.1,2.98855]
[1722331839714,2.98802,3346.7,3346.2,0.09640065]
[1722331842701,2.98793,3346.8,3346.2,0.09640065]
[1722331843165,5.97593,3346.8,3346.2,0.09640065]
[1722331843526,5.97594,3346.8,3346.2,0.09640065]
[1722331843930,2.98793,3346.8,3346.2,3.08482065]
[1722331848562,2.98793,3346.8,3346.3,2.98834]
[1722331849173,2.98793,3346.8,3346.4,0.09740831]
[1722331852301,3.97407,3346.7,3346.4,0.09740831]
[1722331852594,3.97407,3346.7,3346.1,2.98849]
[1722331852595,6.32287,3346.7,3346.1,2.98849]
[1722331852797,6.32287,3346.7,3346.5,0.09737748]
[1722331853102,6.32287,3346.7,3346.2,2.98844]
[1722331853589,6.32287,3346.7,3346.3,0.09737748]
[1722331854805,2.98815,3346.6,3346.0,2.98857]
[1722331854967,2.98815,3346.6,3346.4,0.09737748]
[1722331855167,2.98815,3346.6,3346.1,2.98853]
[1722331855367,2.98815,3346.6,3346.5,0.09737748]
[1722331855687,2.98815,3346.6,3346.1,2.98853]
[1722331855885,2.98815,3346.6,3346.5,0.09737748]
[1722331856099,6.9625,3346.5,3345.9,2.98868]
[1722331856396,3.97424,3346.5,3346.0,2.98864]
[1722331856710,3.97424,3346.5,3345.9,2.98872]
[1722331856711,2.9883,3346.4,3345.9,2.98872]
[1722331857376,2.98838,3346.3,3345.7,2.98882]
[1722331857789,2.3078,3346.2,3345.7,2.98882]
[1722331858805,2.3078,3346.2,3345.8,2.98881]
[1722331858975,2.3078,3346.2,3345.6,3.0]
[1722331859330,2.3078,3346.2,3345.7,2.98889]
[1722331860800,5.29627,3346.2,3345.7,2.98889]
[1722331861004,2.3078,3346.2,3345.7,2.98889]
[1722331861166,2.3078,3346.2,3345.7,5.97773]
[1722331861487,2.3078,3346.2,3345.8,2.9888]
[1722331862224,2.9882,3346.5,3345.5,2.4425]
[1722331862225,2.3458,3346.4,3345.9,2.98867]
[1722331862795,5.33409,3346.4,3345.9,2.98867]
[1722331863604,0.986,3346.5,3346.0,2.98862]
[1722331863806,2.98811,3346.6,3346.1,2.98849]
[1722331863981,3.97411,3346.6,3346.1,2.98849]
[1722331865510,3.97411,3346.6,3345.9,2.98867]
[1722331865511,2.98825,3346.5,3345.9,2.98867]
[1722331865717,2.98825,3346.5,3345.9,2.98866]
[1722331866023,2.98825,3346.5,3345.9,2.98868]
[1722331866186,2.9883,3346.4,3345.9,2.98868]
[1722331866387,3.9743,3346.4,3345.9,2.98868]
[1722331866585,2.4794,3346.3,3345.9,2.98868]
[1722331869882,2.4794,3346.3,3346.0,0.09750078]
[1722331871324,0.986,3346.4,3346.0,3.08614078]
[1722331871626,5.34889,3346.5,3346.0,3.08614078]
[1722331871829,5.982379,3346.5,3346.0,0.09750078]
[1722331872011,3.97428,3346.4,3346.0,0.09750078]
[1722331872389,3.97428,3346.4,3345.8,2.98876]
[1722331872586,2.98846,3346.2,3346.1,0.09750078]
[1722331872798,2.98846,3346.2,3344.8,3.61437178]
[1722331872799,3.332,3346.2,3345.2,2.98927]
[1722331873018,0.986,3345.5,3345.1,2.98942]
[1722331873217,0.986,3345.5,3344.9,5.38327]
[1722331873218,0.986,3345.5,3344.9,8.37281]
[1722331873419,2.98923,3345.4,3344.9,5.38324]
[1722331873598,2.98923,3345.4,3344.7,2.98974]
[1722331873599,3.97534,3345.3,3344.7,2.98974]
[1722331873903,0.986,3345.3,3344.7,2.98974]
[1722331874097,3.97527,3345.3,3344.8,2.98969]
[1722331874435,0.986,3345.3,3344.9,2.98961]
[1722331874631,2.98917,3345.4,3344.8,2.98969]
[1722331874928,0.986,3345.5,3344.9,2.98961]
[1722331876326,3.9751,3345.5,3344.9,2.98961]
[1722331876490,3.9751,3345.5,3344.9,2.98955]
[1722331876687,0.986,3345.5,3344.7,0.05978994]
[1722331877129,0.986,3345.5,3345.0,2.98951]
[1722331878194,3.97509,3345.5,3345.0,2.98951]
[1722331878601,3.97509,3345.5,3344.8,2.98963]
[1722331879032,3.97509,3345.5,3344.9,2.9896]
[1722331879033,0.986,3345.3,3344.9,2.9896]
[1722331879989,0.986,3345.3,3344.6,2.98984]
[1722331880189,3.97567,3344.9,3344.4,2.99002]
[1722331880868,0.986,3344.9,3344.4,2.99002]
[1722331881032,0.986,3344.9,3344.6,2.98988]
[1722331882255,0.986,3344.9,3344.7,2.98974]
[1722331883264,0.986,3345.1,3344.7,2.98974]
[1722331884886,0.986,3345.1,3344.8,0.09431679]
[1722331885281,0.986,3345.1,3344.7,2.98974]
[1722331885482,0.986,3345.1,3344.9,0.09431679]
[1722331885804,0.986,3345.1,3345.0,0.09431679]
[1722331886001,0.986,3345.1,3344.7,2.98974]
[1722331886166,0.986,3345.1,3345.0,0.09431679]
[1722331886365,0.986,3345.1,3344.7,2.98974]
[1722331886562,0.986,3345.1,3344.8,0.09431679]
[1722331886764,0.986,3345.1,3344.7,2.98974]
[1722331886987,0.986,3345.1,3344.9,0.09431679]
[1722331887186,0.986,3345.1,3344.8,2.98966]
[1722331887489,0.986,3345.1,3345.0,0.09431679]
[1722331887675,0.986,3345.1,3344.8,2.98966]
[1722331887876,0.986,3345.1,3345.0,0.09431679]
[1722331888091,0.986,3345.1,3344.5,2.98992]
[1722331888092,1.629308,3345.1,3344.7,2.98979]
[1722331888291,3.97545,3345.1,3345.0,0.09431679]
[1722331888455,3.97545,3345.1,3344.5,2.98991]
[1722331888656,2.98945,3345.1,3345.0,0.09431679]
[1722331888856,4.819103,3345.1,3344.6,2.98984]
[1722331889154,3.2896,3344.7,3344.5,2.98991]
[1722331889576,2.3036,3344.7,3344.5,2.98991]
[1722331890900,2.3036,3344.7,3344.6,2.98989]
[1722331893157,3.4533,3344.9,3344.6,2.98989]
[1722331894192,2.3014,3345.3,3344.5,2.4895]
[1722331894499,0.986,3345.2,3344.9,2.9896]
[1722331895258,2.3352,3345.5,3345.3,2.9892]
[1722331895482,0.986,3345.6,3345.4,2.98912]
[1722331895725,0.986,3345.6,3345.0,2.364]
[1722331895883,0.986,3345.6,3345.2,2.98929]
[1722331896257,0.986,3345.6,3345.0,2.98945]
[1722331896460,0.986,3345.6,3345.2,2.98934]
[1722331896900,0.986,3345.6,3345.2,2.98929]
[1722331897107,2.98955,3345.0,3344.4,2.99004]
[1722331897291,0.986,3344.8,3344.4,2.99004]
[1722331898800,2.4108,3344.2,3343.6,2.99074]
[1722331899002,0.986,3344.0,3343.6,2.99071]
[1722331899527,0.986,3344.0,3343.5,2.99085]
[1722331899832,2.99039,3344.1,3343.6,0.08714562]
[1722331899833,0.986,3343.8,3343.6,0.08714562]
[1722331900129,0.986,3343.8,3343.4,2.99091]
[1722331900348,0.986,3343.8,3343.7,0.08714562]
[1722331900489,2.99044,3344.0,3343.5,2.99081]
[1722331900490,0.986,3344.0,3343.5,2.99081]
[1722331900688,0.986,3344.0,3343.7,0.08714562]
[1722331901006,0.986,3344.0,3343.8,0.08756436]
[1722331901201,0.986,3344.0,3343.5,2.99081]
[1722331901398,0.986,3344.0,3342.7,3.0]
[1722331901399,0.986,3343.8,3343.2,2.99108]
[1722331901587,0.986,3343.8,3343.3,2.991]
[1722331901985,2.3162,3343.9,3343.4,2.99089]
[1722331902287,2.3162,3343.9,3343.5,2.99082]
[1722331902918,2.99039,3344.1,3343.6,2.99078]
[1722331903499,2.99039,3344.1,3343.4,2.9909]
[1722331903693,3.97647,3344.0,3343.4,2.9909]
[1722331905133,2.4982,3343.7,3343.2,2.99107]
[1722331905345,3.97683,3343.6,3342.9,2.99137]
[1722331906127,2.99088,3343.5,3342.9,2.99137]
[1722331906336,2.99098,3343.4,3342.7,2.99152]
[1722331906495,2.99098,3343.4,3342.8,2.99143]
[1722331906696,3.97684,3343.6,3343.0,2.9913]
[1722331907628,2.99089,3343.5,3343.0,2.9913]
[1722331908333,2.3676,3343.4,3342.8,5.9829]
[1722331908527,2.3676,3343.4,3343.0,2.99125]
[1722331908702,2.3676,3343.4,3343.1,2.99121]
[1722331909793,2.3676,3343.7,3343.2,2.99113]
[1722331909998,2.3676,3343.7,3343.3,2.99101]
[1722331910200,2.3676,3343.7,3343.3,2.99099]
[1722331910448,0.986,3344.0,3343.3,2.99099]
[1722331910449,3.2603,3344.0,3343.4,2.99095]
[1722331910598,3.54054,3343.9,3343.2,2.99107]
[1722331910798,3.54054,3343.9,3343.3,2.99104]
[1722331911235,0.55,3343.9,3343.4,2.9909]
[1722331911515,2.2743,3344.0,3343.2,0.986]
[1722331911724,2.2743,3344.0,3343.3,2.99098]
[1722331911725,3.2603,3344.0,3343.3,2.99098]
[1722331911928,5.26479,3344.0,3343.5,2.99087]
[1722331912097,2.2743,3344.0,3343.5,2.99087]
[1722331912733,5.26479,3344.0,3343.4,2.99091]
[1722331912948,3.97634,3344.1,3342.9,2.99133]
[1722331912949,2.4861,3343.4,3342.9,2.99133]
[1722331913152,2.4861,3343.4,3343.0,2.99126]
[1722331913605,2.4861,3343.4,3342.9,2.99136]
[1722331913812,2.4861,3343.4,3343.1,2.99117]
[1722331914211,2.4861,3343.4,3342.9,5.98269]
[1722331914411,2.4861,3343.4,3343.0,2.9913]
[1722331914806,2.4861,3343.4,3343.0,3.07629469]
[1722331916949,5.29753,3343.7,3343.0,3.07625469]
[1722331917100,2.99079,3343.6,3343.0,3.07625469]
[1722331918030,3.97679,3343.6,3343.0,3.07625469]
[1722331918249,2.3068,3343.7,3343.0,3.07626469]
[1722331918476,2.3068,3343.7,3343.2,2.99107]
[1722331918622,2.3068,3343.7,3343.3,2.99104]
[1722331919022,2.3068,3343.7,3343.5,2.99082]
[1722331919577,2.3068,3343.7,3343.4,2.99096]
[1722331919727,2.3068,3343.7,3343.6,0.08515346]
[1722331919922,2.3068,3343.7,3343.2,2.99112]
[1722331920469,2.3068,3343.7,3343.3,0.08515346]
[1722331921073,2.3068,3343.7,3343.3,3.07612346]
[1722331921278,2.3068,3343.7,3343.4,2.99095]
[1722331921481,2.3068,3343.7,3343.2,2.99112]
[1722331921688,5.2975,3343.7,3343.5,0.08515346]
[1722331921824,5.2975,3343.7,3343.2,2.99112]
[1722331922043,5.2975,3343.7,3343.6,0.08515346]
[1722331922247,5.2975,3343.7,3343.2,2.99112]
[1722331922463,5.2975,3343.7,3343.6,0.08515346]
[1722331922673,5.2975,3343.7,3343.2,2.99112]
[1722331922884,5.2975,3343.7,3343.6,0.08515346]
[1722331923087,5.2975,3343.7,3343.2,2.99112]
[1722331923505,5.2975,3343.7,3343.3,0.08515346]
[1722331925788,2.9908,3343.6,3343.3,0.08515346]
[1722331926101,2.99096,3343.4,3343.3,0.08515346]
[1722331926283,2.99096,3343.4,3342.8,5.98287]
[1722331926495,2.99096,3343.4,3343.3,0.08532106]
[1722331926806,2.99096,3343.4,3342.8,2.99143]
[1722331927117,8.33749,3343.4,3342.8,2.99143]
[1722331927267,2.9912,3343.2,3342.9,0.08532106]
[1722331927470,0.986,3343.0,3342.9,0.08532106]
[1722331927723,2.99125,3343.1,3342.6,0.1079582]
[1722331927875,2.99125,3343.1,3342.9,0.08532106]
[1722331928076,2.99114,3343.2,3342.6,3.0996082]
[1722331928303,2.99114,3343.2,3343.0,0.08532106]
[1722331928505,2.99114,3343.2,3342.6,3.0996082]
[1722331928714,2.99114,3343.2,3343.1,0.08532106]
[1722331929066,2.99114,3343.2,3342.6,3.0996082]
[1722331929307,2.99114,3343.2,3343.1,0.08532106]
[1722331929505,2.99114,3343.2,3342.6,3.0996082]
[1722331929715,2.99114,3343.2,3343.1,0.08532106]
[1722331929914,2.99114,3343.2,3342.6,3.0996082]
[1722331929915,2.99114,3343.2,3342.6,3.0995782]
[1722331930126,2.99114,3343.2,3343.1,0.08532106]
[1722331930322,2.99114,3343.2,3342.7,2.99158]
[1722331930478,2.99114,3343.2,3343.1,0.08532106]
[1722331930683,2.99114,3343.2,3342.6,3.0996382]
[1722331930986,2.99114,3343.2,3343.1,0.08532106]
[1722331931187,2.99114,3343.2,3342.6,3.0996382]
[1722331931384,2.99114,3343.2,3343.1,0.08532106]
[1722331931719,2.99114,3343.2,3342.6,3.0996382]
[1722331931880,5.98236,3343.2,3343.1,0.08532106]
[1722331932095,5.98236,3343.2,3342.6,3.0996382]
[1722331932285,5.98236,3343.2,3343.1,0.08532106]
[1722331932503,2.99123,3343.1,3342.6,3.0996382]
[1722331932712,2.99123,3343.1,3342.6,0.1079582]
[1722331932713,2.295,3343.0,3342.6,0.1079582]
[1722331933290,2.295,3343.0,3342.6,3.0996182]
[1722331933830,2.99123,3343.1,3342.6,3.0996182]
[1722331934609,6.27427,3343.3,3342.6,3.0995682]
[1722331934822,2.99116,3343.2,3342.6,3.0995682]
[1722331935143,2.99128,3343.1,3342.6,0.1079582]
[1722331935420,2.99128,3343.1,3342.6,3.0996282]
[1722331936285,2.99128,3343.1,3342.6,0.1079582]
[1722331938623,3.97728,3343.1,3342.6,0.1079582]
[1722331938828,2.99153,3342.8,3342.6,0.1079582]
[1722331939010,2.4992,3343.0,3342.6,0.1079582]
[1722331939214,2.99154,3342.8,3342.6,0.1079582]
[1722331939735,2.99143,3342.9,3342.6,0.1079582]
[1722331944639,2.99151,3342.8,3342.6,0.1079582]
[1722331944823,2.99143,3342.9,3342.6,0.1079582]
[1722331945038,3.7019078,3342.8,3342.7,0.08558576]
[1722331945246,9.1567078,3342.8,3342.7,0.08558576]
[1722331945761,5.98318,3342.7,3342.6,0.1079582]
[1722331946058,7.60246878,3342.7,3342.6,0.1079582]
[1722331946217,7.60246878,3342.7,3341.4,2.99272]
[1722331946218,2.99284,3341.3,3341.0,0.62567235]
[1722331946423,2.99284,3341.3,3340.5,1.56912532]
[1722331946424,2.3333,3341.2,3339.4,0.986]
[1722331946619,0.986,3340.8,3339.8,2.99418]
[1722331946829,5.8833,3341.2,3339.7,2.99426]
[1722331946830,0.986,3340.6,3339.7,2.99426]
[1722331947002,2.99365,3340.4,3339.7,2.99426]
[1722331947208,3.525688,3341.1,3339.7,2.99426]
[1722331947209,2.99357,3340.5,3339.7,2.99427]
[1722331947437,0.532618,3341.1,3339.7,2.99427]
[1722331947438,0.55,3341.0,3340.0,2.99401]
[1722331947739,4.1847018,3341.0,3340.0,2.99401]
[1722331947956,3.65021647,3340.9,3340.0,2.99401]
[1722331948116,0.65699647,3340.8,3340.0,2.99401]
[1722331948320,2.99331,3340.8,3340.0,2.99401]
[1722331948534,2.99321,3340.9,3340.0,3.05388601]
[1722331948734,2.99321,3340.9,3340.0,2.99401]
[1722331949048,2.99356,3340.6,3339.8,2.99417]
[1722331949249,2.99365,3340.4,3339.8,2.99417]
[1722331949455,0.95181018,3340.9,3339.4,2.99452]
[1722331949789,0.95181018,3340.9,3339.5,5.99443]
[1722331949790,2.99392,3340.1,3339.5,5.99443]
[1722331950251,2.99401,3340.0,3339.5,3.0]
[1722331950468,2.99386,3340.2,3339.6,2.99433]
[1722331950764,2.99379,3340.3,3339.4,5.99453]
[1722331950964,2.99379,3340.3,3339.6,2.99431]
[1722331951123,2.99379,3340.3,3339.7,2.99427]
[1722331952570,2.99358,3340.5,3339.8,2.99417]
[1722331952885,2.9935,3340.6,3339.9,2.99409]
[1722331953088,4.23448903,3340.6,3339.9,2.99409]
[1722331953378,2.99356,3340.5,3339.9,2.99409]
[1722331953977,2.99356,3340.5,3340.0,0.07331131]
[1722331954132,3.33745068,3340.5,3340.0,0.07331131]
[1722331954846,0.34389068,3340.5,3340.1,2.9939]
[1722331955052,7.3,3340.8,3340.6,2.99345]
[1722331955245,7.3,3341.4,3340.9,2.99312]
[1722331955767,10.29277,3341.4,3341.0,0.07328485]
[1722331955977,2.99309,3341.1,3340.4,2.99357]
[1722331956182,2.99295,3341.2,3340.2,2.3815]
[1722331956183,2.99296,3341.2,3340.2,2.3815]
[1722331956476,2.9932,3340.9,3340.3,2.99369]
[1722331956678,0.29932,3340.8,3340.5,2.99355]
[1722331956977,2.99301,3341.2,3340.5,2.99355]
[1722331957208,2.99309,3341.1,3340.5,2.99355]
[1722331957341,2.99301,3341.2,3340.6,2.99342]
[1722331957545,4.4245157,3341.2,3340.7,2.99338]
[1722331957746,1.4315057,3341.2,3340.7,2.99338]
[1722331958197,1.4315057,3341.2,3340.1,2.99387]
[1722331958198,2.99315,3341.0,3340.1,2.99387]
[1722331958396,2.99315,3341.0,3340.3,2.99365]
[1722331958681,2.99297,3341.2,3340.3,2.99365]
[1722331958682,2.99297,3341.2,3340.5,2.99348]
[1722331959175,2.99308,3341.1,3340.5,2.9935]
[1722331959342,4.37491857,3341.5,3340.6,2.99344]
[1722331959655,4.37491857,3341.5,3340.9,2.99319]
[1722331959854,0.98296143,3341.4,3340.9,2.99319]
[1722331960177,3.97572143,3341.4,3341.0,0.07387979]
[1722331960381,3.97572143,3341.4,3340.8,2.99326]
[1722331960539,3.97572143,3341.4,3340.7,2.99336]
[1722331960540,0.98296143,3341.4,3341.1,0.07386656]
[1722331960743,2.99267,3341.5,3341.1,0.07386656]
[1722331961159,2.99267,3341.5,3340.9,2.99318]
[1722331961363,2.99276,3341.4,3341.2,0.07386656]
[1722331961579,2.99276,3341.4,3340.9,2.99318]
[1722331961768,2.99276,3341.4,3341.3,0.07376072]
[1722331961964,4.13675757,3341.4,3340.9,2.99318]
[1722331962475,1.14399757,3341.4,3341.0,3.06680072]
[1722331963201,1.14399757,3341.4,3341.1,2.993]